[Event "Titled Tuesday Blitz March 01 Early 2022"]
[White "Oparin, Grigoriy"]
[Black "Vlassov, Nikolai"]
[WhiteFideId "24125890"]
[BlackFideId "4103360"]
[WhiteElo "2685"]
[BlackElo "2407"]
[Result "1-0"]
[Round "06"]
[TimeControl "180+1"]
[Date "2022.03.01"]
[WhiteClock "0:00:21"]
[BlackClock "0:00:20"]

1. d4 {[%clk 0:03:00]}  Nf6 {[%clk 0:02:59]} 2. c4 {[%clk 0:03:01]}  Nc6 {[%clk 0:02:59]} 3. Nf3 {[%clk 0:03:02]}  e6 {[%clk 0:03:00]} 4. Nc3 {[%clk 0:03:01]}  Bb4 {[%clk 0:02:59]} 5. Bd2 {[%clk 0:03:00]}  O-O {[%clk 0:02:59]} 6. e3 {[%clk 0:03:01]}  d6 {[%clk 0:02:59]} 7. Qc2 {[%clk 0:02:59]}  e5 {[%clk 0:02:58]} 8. a3 {[%clk 0:02:57]}  Bxc3 {[%clk 0:02:58]} 9. Bxc3 {[%clk 0:02:58]}  Qe7 {[%clk 0:02:57]} 10. Be2 {[%clk 0:02:57]}  Bg4 {[%clk 0:02:56]} 11. d5 {[%clk 0:02:51]}  Nb8 {[%clk 0:02:53]} 12. h3 {[%clk 0:02:51]}  Bh5 {[%clk 0:02:52]} 13. e4 {[%clk 0:02:48]}  c6 {[%clk 0:02:52]} 14. g4 {[%clk 0:02:35]}  Bg6 {[%clk 0:02:52]} 15. Bd3 {[%clk 0:02:35]}  cxd5 {[%clk 0:02:51]} 16. cxd5 {[%clk 0:02:34]}  Nxd5 {[%clk 0:02:38]} 17. exd5 {[%clk 0:02:35]}  e4 {[%clk 0:02:38]} 18. Qe2 {[%clk 0:02:35]}  Re8 {[%clk 0:02:38]} 19. Bc4 {[%clk 0:02:17]}  exf3 {[%clk 0:02:36]} 20. Qxe7 {[%clk 0:02:18]}  Rxe7+ {[%clk 0:02:36]} 21. Kd2 {[%clk 0:02:18]}  Nd7 {[%clk 0:02:33]} 22. Rhe1 {[%clk 0:02:19]}  Rae8 {[%clk 0:02:32]} 23. Bd4 {[%clk 0:02:10]}  a6 {[%clk 0:02:20]} 24. a4 {[%clk 0:02:04]}  h5 {[%clk 0:02:19]} 25. Rxe7 {[%clk 0:01:47]}  Rxe7 {[%clk 0:02:19]} 26. Re1 {[%clk 0:01:48]}  Rxe1 {[%clk 0:02:14]} 27. Kxe1 {[%clk 0:01:49]}  hxg4 {[%clk 0:02:14]} 28. hxg4 {[%clk 0:01:50]}  Kf8 {[%clk 0:01:47]} 29. a5 {[%clk 0:01:47]}  Ne5 {[%clk 0:01:38]} 30. Bxe5 {[%clk 0:01:48]}  dxe5 {[%clk 0:01:38]} 31. d6 {[%clk 0:01:48]}  Be4 {[%clk 0:01:36]} 32. Kd2 {[%clk 0:01:45]}  Bc6 {[%clk 0:01:36]} 33. Kc3 {[%clk 0:01:18]}  f6 {[%clk 0:01:33]} 34. Be6 {[%clk 0:01:16]}  Ke8 {[%clk 0:01:32]} 35. Kd3 {[%clk 0:01:08]}  Kd8 {[%clk 0:01:18]} 36. Ke3 {[%clk 0:01:07]}  e4 {[%clk 0:01:06]} 37. Bf5 {[%clk 0:01:05]}  Ke8 {[%clk 0:00:52]} 38. b4 {[%clk 0:00:40]}  Kf7 {[%clk 0:00:39]} 39. Bxe4 {[%clk 0:00:26]}  Bxe4 {[%clk 0:00:38]} 40. Kxe4 {[%clk 0:00:27]}  Ke6 {[%clk 0:00:38]} 41. Kxf3 {[%clk 0:00:25]}  Kxd6 {[%clk 0:00:38]} 42. Ke4 {[%clk 0:00:26]}  g6 {[%clk 0:00:33]} 43. f4 {[%clk 0:00:21]}  Kc6 {[%clk 0:00:27]} 44. Kd4 {[%clk 0:00:21]}  Kb5 {[%clk 0:00:27]} 45. Kc3 {[%clk 0:00:19]}  Ka4 {[%clk 0:00:20]} 46. Kc4 {[%clk 0:00:19]}  Ka3 {[%clk 0:00:20]} 47. f5 {[%clk 0:00:12]}  gxf5 {[%clk 0:00:19]} 48. gxf5 {[%clk 0:00:13]}  Ka4 {[%clk 0:00:19]} 49. Kc5 {[%clk 0:00:13]}  Kb3 {[%clk 0:00:19]} 50. b5 {[%clk 0:00:14]}  Ka4 {[%clk 0:00:19]} 51. bxa6 {[%clk 0:00:14]}  bxa6 {[%clk 0:00:17]} 52. Kb6 {[%clk 0:00:14]}  Kb4 {[%clk 0:00:18]} 53. Kxa6 {[%clk 0:00:15]}  Kc5 {[%clk 0:00:18]} 54. Kb7 {[%clk 0:00:16]}  Kd6 {[%clk 0:00:18]} 55. a6 {[%clk 0:00:17]}  Ke5 {[%clk 0:00:19]} 56. a7 {[%clk 0:00:18]}  Kxf5 {[%clk 0:00:19]} 57. a8=Q {[%clk 0:00:18]}  Kg4 {[%clk 0:00:20]} 58. Qa6 {[%clk 0:00:19]}  f5 {[%clk 0:00:20]} 59. Qf1 {[%clk 0:00:20]}  f4 {[%clk 0:00:20]} 60. Kc6 {[%clk 0:00:21]} 1-0


[Site "https://www.chess.com"]

[Event "Titled Tuesday Blitz March 01 Early 2022"]
[White "Paravyan, David"]
[Black "Beerdsen, Thomas"]
[WhiteFideId "4194985"]
[BlackFideId "1030108"]
[WhiteElo "2569"]
[BlackElo "2585"]
[Result "1-0"]
[Round "06"]
[TimeControl "180+1"]
[Date "2022.03.01"]
[WhiteClock "0:00:13"]
[BlackClock "0:00:51"]

1. e4 {[%clk 0:02:58]}  e5 {[%clk 0:02:57]} 2. Nf3 {[%clk 0:02:58]}  Nc6 {[%clk 0:02:58]} 3. Nc3 {[%clk 0:02:59]}  Nf6 {[%clk 0:02:58]} 4. d4 {[%clk 0:03:00]}  exd4 {[%clk 0:02:59]} 5. Nxd4 {[%clk 0:03:01]}  Bb4 {[%clk 0:03:00]} 6. Nxc6 {[%clk 0:03:01]}  bxc6 {[%clk 0:03:00]} 7. Bd3 {[%clk 0:03:01]}  d5 {[%clk 0:03:01]} 8. exd5 {[%clk 0:03:02]}  Bg4 {[%clk 0:03:01]} 9. f3 {[%clk 0:02:55]}  Bh5 {[%clk 0:03:02]} 10. Qe2+ {[%clk 0:02:51]}  Be7 {[%clk 0:02:48]} 11. dxc6 {[%clk 0:02:49]}  O-O {[%clk 0:02:49]} 12. O-O {[%clk 0:02:49]}  Rb8 {[%clk 0:02:45]} 13. Kh1 {[%clk 0:02:47]}  Bd6 {[%clk 0:02:42]} 14. Qf2 {[%clk 0:02:45]}  a5 {[%clk 0:02:33]} 15. Rb1 {[%clk 0:02:39]}  Qe8 {[%clk 0:02:27]} 16. Bg5 {[%clk 0:02:35]}  Qe5 {[%clk 0:02:25]} 17. Qh4 {[%clk 0:02:33]}  Bg6 {[%clk 0:02:21]} 18. Rfe1 {[%clk 0:02:29]}  Qc5 {[%clk 0:02:15]} 19. Bxf6 {[%clk 0:02:28]}  gxf6 {[%clk 0:02:15]} 20. Ne4 {[%clk 0:02:23]}  Bxe4 {[%clk 0:02:04]} 21. Bxe4 {[%clk 0:02:24]}  f5 {[%clk 0:02:04]} 22. Qg5+ {[%clk 0:02:24]}  Kh8 {[%clk 0:02:04]} 23. Qf6+ {[%clk 0:02:23]}  Kg8 {[%clk 0:02:04]} 24. Qg5+ {[%clk 0:02:10]}  Kh8 {[%clk 0:02:04]} 25. Qxf5 {[%clk 0:02:09]}  Qxf5 {[%clk 0:02:03]} 26. Bxf5 {[%clk 0:02:10]}  Rb5 {[%clk 0:02:00]} 27. Be4 {[%clk 0:02:04]}  Rc5 {[%clk 0:01:56]} 28. g3 {[%clk 0:02:01]}  f5 {[%clk 0:01:56]} 29. Bd3 {[%clk 0:02:02]}  h5 {[%clk 0:01:54]} 30. Re6 {[%clk 0:01:59]}  Kg7 {[%clk 0:01:55]} 31. Rbe1 {[%clk 0:01:57]}  a4 {[%clk 0:01:49]} 32. Kg2 {[%clk 0:01:56]}  a3 {[%clk 0:01:49]} 33. bxa3 {[%clk 0:01:48]}  h4 {[%clk 0:01:46]} 34. gxh4 {[%clk 0:01:45]}  Rh8 {[%clk 0:01:47]} 35. Kh3 {[%clk 0:01:30]}  Ra5 {[%clk 0:01:27]} 36. Rg1+ {[%clk 0:01:22]}  Kf7 {[%clk 0:01:15]} 37. Bc4 {[%clk 0:01:17]}  Ra4 {[%clk 0:01:12]} 38. Rh6+ {[%clk 0:00:41]}  Rxc4 {[%clk 0:01:06]} 39. Rxh8 {[%clk 0:00:42]}  Rxc2 {[%clk 0:01:07]} 40. Rh7+ {[%clk 0:00:33]}  Ke6 {[%clk 0:01:07]} 41. Rg2 {[%clk 0:00:26]}  Rc3 {[%clk 0:01:07]} 42. Re2+ {[%clk 0:00:27]}  Kd5 {[%clk 0:01:06]} 43. Kg2 {[%clk 0:00:27]}  Rc4 {[%clk 0:01:04]} 44. Rh8 {[%clk 0:00:25]}  Kxc6 {[%clk 0:01:04]} 45. h5 {[%clk 0:00:26]}  Rh4 {[%clk 0:01:04]} 46. h3 {[%clk 0:00:26]}  Bxa3 {[%clk 0:01:05]} 47. h6 {[%clk 0:00:26]}  Bc5 {[%clk 0:01:00]} 48. Rc2 {[%clk 0:00:24]}  Kd5 {[%clk 0:00:59]} 49. h7 {[%clk 0:00:21]}  Bd6 {[%clk 0:00:58]} 50. a4 {[%clk 0:00:19]}  Rh6 {[%clk 0:00:53]} 51. a5 {[%clk 0:00:18]}  Kd4 {[%clk 0:00:51]} 52. a6 {[%clk 0:00:18]}  Kd3 {[%clk 0:00:52]} 53. Ra2 {[%clk 0:00:17]}  Rg6+ {[%clk 0:00:49]} 54. Kf1 {[%clk 0:00:18]}  Bc5 {[%clk 0:00:50]} 55. Rd8+ {[%clk 0:00:15]}  Ke3 {[%clk 0:00:50]} 56. h8=Q {[%clk 0:00:12]}  Kxf3 {[%clk 0:00:50]} 57. Qc3+ {[%clk 0:00:13]}  Be3 {[%clk 0:00:50]} 58. Qxe3+ {[%clk 0:00:13]}  Kxe3 {[%clk 0:00:51]} 59. a7 {[%clk 0:00:13]} 1-0


[Site "https://www.chess.com"]

[Event "Titled Tuesday Blitz March 01 Early 2022"]
[White "Pasti, Aron"]
[Black "Piliczewski, Bogusz"]
[WhiteFideId "785857"]
[BlackFideId "1104144"]
[WhiteElo "2080"]
[BlackElo "1896"]
[Result "1-0"]
[Round "06"]
[TimeControl "180+1"]
[Date "2022.03.01"]
[WhiteClock "0:00:15"]
[BlackClock "0:00:01"]

1. e4 {[%clk 0:03:00]}  c6 {[%clk 0:02:59]} 2. d4 {[%clk 0:02:59]}  d5 {[%clk 0:02:59]} 3. exd5 {[%clk 0:02:57]}  cxd5 {[%clk 0:02:59]} 4. c4 {[%clk 0:02:58]}  Nf6 {[%clk 0:02:59]} 5. Nc3 {[%clk 0:02:55]}  Nc6 {[%clk 0:02:59]} 6. Nf3 {[%clk 0:02:51]}  a6 {[%clk 0:03:00]} 7. Bg5 {[%clk 0:02:49]}  Bg4 {[%clk 0:02:38]} 8. Bxf6 {[%clk 0:02:38]}  gxf6 {[%clk 0:02:35]} 9. Nxd5 {[%clk 0:02:34]}  Bxf3 {[%clk 0:02:23]} 10. Qxf3 {[%clk 0:02:22]}  Nxd4 {[%clk 0:02:24]} 11. Qc3 {[%clk 0:02:18]}  e5 {[%clk 0:02:13]} 12. Bd3 {[%clk 0:01:52]}  Rc8 {[%clk 0:02:03]} 13. O-O {[%clk 0:01:42]}  Bg7 {[%clk 0:01:46]} 14. Rfe1 {[%clk 0:01:33]}  O-O {[%clk 0:01:45]} 15. Rad1 {[%clk 0:01:21]}  f5 {[%clk 0:01:44]} 16. Ne7+ {[%clk 0:00:39]}  Qxe7 {[%clk 0:01:42]} 17. Qxd4 {[%clk 0:00:35]}  e4 {[%clk 0:01:30]} 18. Qd5 {[%clk 0:00:32]}  Qg5 {[%clk 0:01:13]} 19. Bxe4 {[%clk 0:00:24]}  Bxb2 {[%clk 0:00:51]} 20. Bxf5 {[%clk 0:00:23]}  Rcd8 {[%clk 0:00:49]} 21. Bxh7+ {[%clk 0:00:17]}  Kxh7 {[%clk 0:00:44]} 22. Qxg5 {[%clk 0:00:17]}  Rxd1 {[%clk 0:00:39]} 23. Rxd1 {[%clk 0:00:18]}  Bg7 {[%clk 0:00:35]} 24. Rd3 {[%clk 0:00:16]}  Re8 {[%clk 0:00:33]} 25. Kf1 {[%clk 0:00:14]}  Bh6 {[%clk 0:00:27]} 26. Rh3 {[%clk 0:00:13]}  Re6 {[%clk 0:00:25]} 27. Qf5+ {[%clk 0:00:12]}  Kg7 {[%clk 0:00:22]} 28. Rxh6 {[%clk 0:00:10]}  Rxh6 {[%clk 0:00:22]} 29. Qe5+ {[%clk 0:00:09]}  Kg6 {[%clk 0:00:19]} 30. g4 {[%clk 0:00:07]}  Rh4 {[%clk 0:00:15]} 31. Qf5+ {[%clk 0:00:07]}  Kh6 {[%clk 0:00:10]} 32. Qf6+ {[%clk 0:00:07]}  Kh7 {[%clk 0:00:05]} 33. Qxh4+ {[%clk 0:00:07]}  Kg7 {[%clk 0:00:04]} 34. Qg5+ {[%clk 0:00:08]}  Kf8 {[%clk 0:00:04]} 35. Qd8+ {[%clk 0:00:08]}  Kg7 {[%clk 0:00:05]} 36. Qc7 {[%clk 0:00:09]}  b5 {[%clk 0:00:03]} 37. Qb7 {[%clk 0:00:10]}  bxc4 {[%clk 0:00:03]} 38. Qb4 {[%clk 0:00:11]}  c3 {[%clk 0:00:03]} 39. Qxc3+ {[%clk 0:00:11]}  Kg6 {[%clk 0:00:04]} 40. Qa5 {[%clk 0:00:11]}  f6 {[%clk 0:00:03]} 41. Qxa6 {[%clk 0:00:12]}  Kg5 {[%clk 0:00:03]} 42. Qc6 {[%clk 0:00:13]}  Kxg4 {[%clk 0:00:03]} 43. a4 {[%clk 0:00:14]}  Kh3 {[%clk 0:00:03]} 44. a5 {[%clk 0:00:15]}  Kg4 {[%clk 0:00:02]} 45. a6 {[%clk 0:00:16]}  f5 {[%clk 0:00:02]} 46. a7 {[%clk 0:00:16]}  Kg5 {[%clk 0:00:02]} 47. a8=Q {[%clk 0:00:16]}  Kf4 {[%clk 0:00:01]} 48. Qb8+ {[%clk 0:00:15]} 1-0


[Site "https://www.chess.com"]

[Event "Titled Tuesday Blitz March 01 Early 2022"]
[White "Petrova, Irina"]
[Black "Bogumil, Tatiana"]
[WhiteFideId "14124122"]
[BlackFideId "4110579"]
[WhiteElo "1988"]
[BlackElo "1862"]
[Result "1-0"]
[Round "06"]
[TimeControl "180+1"]
[Date "2022.03.01"]
[WhiteClock "0:01:39"]
[BlackClock "0:00:05"]

1. e4 {[%clk 0:03:00]}  c5 {[%clk 0:01:53]} 2. Nf3 {[%clk 0:02:59]}  Nc6 {[%clk 0:01:53]} 3. Bb5 {[%clk 0:02:58]}  a6 {[%clk 0:01:30]} 4. Bxc6 {[%clk 0:02:54]}  bxc6 {[%clk 0:01:30]} 5. O-O {[%clk 0:02:51]}  d6 {[%clk 0:01:30]} 6. c3 {[%clk 0:02:44]}  g6 {[%clk 0:01:29]} 7. d4 {[%clk 0:02:43]}  cxd4 {[%clk 0:01:28]} 8. cxd4 {[%clk 0:02:44]}  Bg7 {[%clk 0:01:28]} 9. Nc3 {[%clk 0:02:41]}  Nf6 {[%clk 0:01:24]} 10. h3 {[%clk 0:02:40]}  O-O {[%clk 0:01:25]} 11. Re1 {[%clk 0:02:40]}  Nd7 {[%clk 0:01:23]} 12. e5 {[%clk 0:02:36]}  Nb6 {[%clk 0:01:21]} 13. Bg5 {[%clk 0:02:30]}  h6 {[%clk 0:01:20]} 14. Bh4 {[%clk 0:02:30]}  g5 {[%clk 0:01:16]} 15. Bg3 {[%clk 0:02:30]}  Nd5 {[%clk 0:01:16]} 16. Nxd5 {[%clk 0:02:29]}  cxd5 {[%clk 0:01:13]} 17. exd6 {[%clk 0:02:29]}  exd6 {[%clk 0:01:11]} 18. Qb3 {[%clk 0:02:29]}  Be6 {[%clk 0:01:09]} 19. Qa3 {[%clk 0:02:24]}  Qb6 {[%clk 0:00:31]} 20. Bxd6 {[%clk 0:02:23]}  Rfc8 {[%clk 0:00:30]} 21. Bc5 {[%clk 0:02:22]}  Qc7 {[%clk 0:00:29]} 22. b4 {[%clk 0:02:17]}  Qf4 {[%clk 0:00:28]} 23. Ne5 {[%clk 0:02:12]}  Qh4 {[%clk 0:00:13]} 24. Rac1 {[%clk 0:02:07]}  g4 {[%clk 0:00:12]} 25. Ng6 {[%clk 0:01:59]}  fxg6 {[%clk 0:00:08]} 26. Rxe6 {[%clk 0:01:59]}  gxh3 {[%clk 0:00:08]} 27. Qxh3 {[%clk 0:01:46]}  Qg5 {[%clk 0:00:08]} 28. Rce1 {[%clk 0:01:44]}  Kh7 {[%clk 0:00:08]} 29. Re7 {[%clk 0:01:42]}  Rc6 {[%clk 0:00:06]} 30. Rxg7+ {[%clk 0:01:38]}  Kxg7 {[%clk 0:00:05]} 31. Qd7+ {[%clk 0:01:39]} 1-0


[Site "https://www.chess.com"]

[Event "Titled Tuesday Blitz March 01 Early 2022"]
[White "Piesik, Piotr"]
[Black "Fier, Alexandr"]
[WhiteFideId "1136194"]
[BlackFideId "2107139"]
[WhiteElo "2232"]
[BlackElo "2569"]
[Result "1-0"]
[Round "06"]
[TimeControl "180+1"]
[Date "2022.03.01"]
[WhiteClock "0:00:19"]
[BlackClock "0:00:43"]

1. Nf3 {[%clk 0:03:00]}  Nf6 {[%clk 0:02:57]} 2. g3 {[%clk 0:03:01]}  g6 {[%clk 0:02:57]} 3. Bg2 {[%clk 0:02:58]}  Bg7 {[%clk 0:02:57]} 4. O-O {[%clk 0:02:59]}  O-O {[%clk 0:02:58]} 5. d4 {[%clk 0:03:00]}  d5 {[%clk 0:02:58]} 6. c4 {[%clk 0:03:00]}  dxc4 {[%clk 0:02:56]} 7. Na3 {[%clk 0:03:00]}  c3 {[%clk 0:02:56]} 8. bxc3 {[%clk 0:03:01]}  c5 {[%clk 0:02:57]} 9. Qb3 {[%clk 0:03:01]}  Nc6 {[%clk 0:02:56]} 10. Rd1 {[%clk 0:03:01]}  Na5 {[%clk 0:02:49]} 11. Qb2 {[%clk 0:03:01]}  Qb6 {[%clk 0:02:39]} 12. Ne5 {[%clk 0:02:49]}  Be6 {[%clk 0:02:30]} 13. e3 {[%clk 0:02:41]}  Qxb2 {[%clk 0:02:19]} 14. Bxb2 {[%clk 0:02:41]}  Nd5 {[%clk 0:02:20]} 15. Nd3 {[%clk 0:02:32]}  c4 {[%clk 0:02:09]} 16. Nc5 {[%clk 0:02:27]}  Nb6 {[%clk 0:02:09]} 17. Nxe6 {[%clk 0:02:26]}  fxe6 {[%clk 0:02:10]} 18. Nc2 {[%clk 0:02:05]}  Na4 {[%clk 0:02:09]} 19. Rab1 {[%clk 0:02:06]}  Rab8 {[%clk 0:02:05]} 20. Bh3 {[%clk 0:02:05]}  Kf7 {[%clk 0:02:05]} 21. Ne1 {[%clk 0:01:56]}  b5 {[%clk 0:02:01]} 22. Nf3 {[%clk 0:01:54]}  Bf6 {[%clk 0:02:02]} 23. Rdc1 {[%clk 0:01:50]}  Rb6 {[%clk 0:02:01]} 24. Ba3 {[%clk 0:01:48]}  Nc6 {[%clk 0:01:58]} 25. Nd2 {[%clk 0:01:45]}  Rfb8 {[%clk 0:01:53]} 26. Bg2 {[%clk 0:01:38]}  Na5 {[%clk 0:01:33]} 27. Be4 {[%clk 0:01:28]}  Nb7 {[%clk 0:01:26]} 28. f4 {[%clk 0:01:23]}  g5 {[%clk 0:01:21]} 29. Bf3 {[%clk 0:01:21]}  gxf4 {[%clk 0:01:21]} 30. gxf4 {[%clk 0:01:21]}  Bg7 {[%clk 0:01:16]} 31. Bd1 {[%clk 0:01:19]}  Na5 {[%clk 0:01:12]} 32. Bxa4 {[%clk 0:01:14]}  bxa4 {[%clk 0:01:12]} 33. Bc5 {[%clk 0:01:14]}  Rxb1 {[%clk 0:01:06]} 34. Rxb1 {[%clk 0:01:14]}  Rxb1+ {[%clk 0:01:07]} 35. Nxb1 {[%clk 0:01:15]}  e5 {[%clk 0:01:04]} 36. fxe5 {[%clk 0:01:14]}  e6 {[%clk 0:01:04]} 37. Nd2 {[%clk 0:01:13]}  Bf8 {[%clk 0:01:04]} 38. Bxa7 {[%clk 0:01:10]}  Ba3 {[%clk 0:01:03]} 39. Bb6 {[%clk 0:01:06]}  Bc1 {[%clk 0:01:03]} 40. Bxa5 {[%clk 0:00:52]}  Bxd2 {[%clk 0:01:04]} 41. Kf2 {[%clk 0:00:53]}  Ke7 {[%clk 0:01:04]} 42. e4 {[%clk 0:00:50]}  Bf4 {[%clk 0:01:03]} 43. h3 {[%clk 0:00:49]}  Kd7 {[%clk 0:01:03]} 44. Kf3 {[%clk 0:00:50]}  Bd2 {[%clk 0:01:03]} 45. d5 {[%clk 0:00:49]}  Ke7 {[%clk 0:01:03]} 46. Bb4+ {[%clk 0:00:48]}  Kd7 {[%clk 0:01:03]} 47. Kg4 {[%clk 0:00:48]}  Be3 {[%clk 0:01:02]} 48. Kf3 {[%clk 0:00:41]}  Bd2 {[%clk 0:01:02]} 49. Ke2 {[%clk 0:00:41]}  Bf4 {[%clk 0:01:02]} 50. Bd6 {[%clk 0:00:41]}  Bc1 {[%clk 0:01:01]} 51. Bc5 {[%clk 0:00:39]}  Bf4 {[%clk 0:00:59]} 52. Bd4 {[%clk 0:00:40]}  Ke7 {[%clk 0:00:56]} 53. Kf3 {[%clk 0:00:39]}  Bc1 {[%clk 0:00:57]} 54. Be3 {[%clk 0:00:39]}  Bb2 {[%clk 0:00:57]} 55. Bd2 {[%clk 0:00:39]}  Kd7 {[%clk 0:00:56]} 56. Kg4 {[%clk 0:00:39]}  Ba3 {[%clk 0:00:55]} 57. Kg5 {[%clk 0:00:36]}  Be7+ {[%clk 0:00:47]} 58. Kh6 {[%clk 0:00:36]}  Bh4 {[%clk 0:00:48]} 59. Kxh7 {[%clk 0:00:36]}  Bg3 {[%clk 0:00:48]} 60. Kg6 {[%clk 0:00:36]}  Bxe5 {[%clk 0:00:49]} 61. dxe6+ {[%clk 0:00:31]}  Kxe6 {[%clk 0:00:49]} 62. h4 {[%clk 0:00:32]}  Bh8 {[%clk 0:00:47]} 63. h5 {[%clk 0:00:21]}  Ke5 {[%clk 0:00:48]} 64. h6 {[%clk 0:00:20]}  Kxe4 {[%clk 0:00:48]} 65. h7 {[%clk 0:00:20]}  Kd3 {[%clk 0:00:48]} 66. Bg5 {[%clk 0:00:19]}  Bxc3 {[%clk 0:00:43]} 67. Bf6 {[%clk 0:00:19]}  Bxf6 {[%clk 0:00:42]} 68. Kxf6 {[%clk 0:00:20]}  c3 {[%clk 0:00:43]} 69. h8=Q {[%clk 0:00:20]}  c2 {[%clk 0:00:44]} 70. Qh6 {[%clk 0:00:18]}  Kc3 {[%clk 0:00:43]} 71. Qc1 {[%clk 0:00:18]}  Kb4 {[%clk 0:00:43]} 72. Ke5 {[%clk 0:00:18]}  Kc3 {[%clk 0:00:43]} 73. Ke4 {[%clk 0:00:18]}  Kb4 {[%clk 0:00:43]} 74. Kd3 {[%clk 0:00:19]}  a3 {[%clk 0:00:43]} 75. Qxc2 {[%clk 0:00:19]} 1-0


[Site "https://www.chess.com"]

[Event "Titled Tuesday Blitz March 01 Early 2022"]
[White "Pinheiro, Iung Alicio de O."]
[Black "Makhnev, Denis"]
[WhiteFideId "2104350"]
[BlackFideId "13707647"]
[WhiteElo "2549"]
[BlackElo "2491"]
[Result "1-0"]
[Round "06"]
[TimeControl "180+1"]
[Date "2022.03.01"]
[WhiteClock "0:00:11"]
[BlackClock "0:00:03"]

1. e4 {[%clk 0:03:00]}  c6 {[%clk 0:02:58]} 2. Nf3 {[%clk 0:02:56]}  d5 {[%clk 0:02:59]} 3. Nc3 {[%clk 0:02:56]}  Bg4 {[%clk 0:02:57]} 4. h3 {[%clk 0:02:56]}  Bh5 {[%clk 0:02:53]} 5. exd5 {[%clk 0:02:49]}  cxd5 {[%clk 0:02:52]} 6. g4 {[%clk 0:02:50]}  Bg6 {[%clk 0:02:51]} 7. Ne5 {[%clk 0:02:50]}  Nc6 {[%clk 0:02:51]} 8. d4 {[%clk 0:02:42]}  e6 {[%clk 0:02:49]} 9. h4 {[%clk 0:02:39]}  f6 {[%clk 0:02:47]} 10. Nxg6 {[%clk 0:02:36]}  hxg6 {[%clk 0:02:48]} 11. Qd3 {[%clk 0:02:35]}  Kf7 {[%clk 0:02:44]} 12. h5 {[%clk 0:02:32]}  gxh5 {[%clk 0:02:44]} 13. gxh5 {[%clk 0:02:31]}  Nge7 {[%clk 0:02:40]} 14. Be3 {[%clk 0:02:04]}  Nf5 {[%clk 0:02:39]} 15. O-O-O {[%clk 0:01:59]}  Rc8 {[%clk 0:02:26]} 16. Kb1 {[%clk 0:01:51]}  Nb4 {[%clk 0:01:53]} 17. Qb5 {[%clk 0:01:35]}  Be7 {[%clk 0:01:28]} 18. a3 {[%clk 0:01:17]}  a6 {[%clk 0:01:26]} 19. Qe2 {[%clk 0:01:08]}  Rxc3 {[%clk 0:01:14]} 20. axb4 {[%clk 0:00:50]}  Rc6 {[%clk 0:00:49]} 21. c3 {[%clk 0:00:42]}  b5 {[%clk 0:00:47]} 22. Bh3 {[%clk 0:00:39]}  a5 {[%clk 0:00:36]} 23. Bxf5 {[%clk 0:00:36]}  exf5 {[%clk 0:00:37]} 24. Qxb5 {[%clk 0:00:34]}  Rb6 {[%clk 0:00:17]} 25. Qxa5 {[%clk 0:00:33]}  Qd6 {[%clk 0:00:18]} 26. Rhe1 {[%clk 0:00:25]}  Qc6 {[%clk 0:00:18]} 27. Qa3 {[%clk 0:00:16]}  Ra8 {[%clk 0:00:16]} 28. Qb3 {[%clk 0:00:16]}  Bxb4 {[%clk 0:00:11]} 29. cxb4 {[%clk 0:00:16]}  Rba6 {[%clk 0:00:11]} 30. Qc3 {[%clk 0:00:13]}  Qb7 {[%clk 0:00:05]} 31. Rc1 {[%clk 0:00:12]}  Ra1+ {[%clk 0:00:03]} 32. Kc2 {[%clk 0:00:12]}  R1a6 {[%clk 0:00:03]} 33. Kd2 {[%clk 0:00:12]}  Rb6 {[%clk 0:00:03]} 34. Qc7+ {[%clk 0:00:11]} 1-0


[Site "https://www.chess.com"]

[Event "Titled Tuesday Blitz March 01 Early 2022"]
[White "Polster, Christian"]
[Black "Rozhkov, Viacheslav"]
[WhiteFideId "12965081"]
[BlackFideId "4181484"]
[WhiteElo "2309"]
[BlackElo "2324"]
[Result "0-1"]
[Round "06"]
[TimeControl "180+1"]
[Date "2022.03.01"]
[WhiteClock "0:00:03"]
[BlackClock "0:00:15"]

1. e4 {[%clk 0:03:00]}  c5 {[%clk 0:02:55]} 2. Nc3 {[%clk 0:03:00]}  Nc6 {[%clk 0:02:55]} 3. Nge2 {[%clk 0:03:00]}  g6 {[%clk 0:02:55]} 4. d4 {[%clk 0:03:00]}  cxd4 {[%clk 0:02:55]} 5. Nxd4 {[%clk 0:03:01]}  Bg7 {[%clk 0:02:55]} 6. Be3 {[%clk 0:03:01]}  Nf6 {[%clk 0:02:56]} 7. Bc4 {[%clk 0:03:01]}  Qa5 {[%clk 0:02:55]} 8. O-O {[%clk 0:02:56]}  O-O {[%clk 0:02:54]} 9. Bb3 {[%clk 0:02:51]}  d6 {[%clk 0:02:50]} 10. h3 {[%clk 0:02:44]}  Bd7 {[%clk 0:02:48]} 11. Re1 {[%clk 0:02:43]}  Rac8 {[%clk 0:02:48]} 12. Nd5 {[%clk 0:02:30]}  Rfe8 {[%clk 0:02:17]} 13. Nxf6+ {[%clk 0:01:09]}  Bxf6 {[%clk 0:02:16]} 14. c3 {[%clk 0:00:50]}  a6 {[%clk 0:01:57]} 15. f4 {[%clk 0:00:39]}  Bg7 {[%clk 0:01:53]} 16. Qf3 {[%clk 0:00:33]}  e6 {[%clk 0:01:26]} 17. Rad1 {[%clk 0:00:29]}  Qc7 {[%clk 0:01:23]} 18. f5 {[%clk 0:00:18]}  Ne5 {[%clk 0:01:22]} 19. Qf2 {[%clk 0:00:16]}  exf5 {[%clk 0:01:19]} 20. exf5 {[%clk 0:00:15]}  Nc4 {[%clk 0:01:17]} 21. f6 {[%clk 0:00:13]}  Bf8 {[%clk 0:01:10]} 22. Bf4 {[%clk 0:00:12]}  Ne5 {[%clk 0:01:07]} 23. Nf3 {[%clk 0:00:11]}  Be6 {[%clk 0:01:02]} 24. Nxe5 {[%clk 0:00:11]}  Bxb3 {[%clk 0:00:56]} 25. axb3 {[%clk 0:00:10]}  dxe5 {[%clk 0:00:56]} 26. Be3 {[%clk 0:00:10]}  Re6 {[%clk 0:00:53]} 27. g4 {[%clk 0:00:10]}  h6 {[%clk 0:00:52]} 28. h4 {[%clk 0:00:10]}  Qc6 {[%clk 0:00:46]} 29. g5 {[%clk 0:00:09]}  Qe4 {[%clk 0:00:42]} 30. Bd4 {[%clk 0:00:03]}  Qg4+ {[%clk 0:00:41]} 31. Qg2 {[%clk 0:00:03]}  Qxg2+ {[%clk 0:00:41]} 32. Kxg2 {[%clk 0:00:03]}  exd4 {[%clk 0:00:42]} 33. Rxe6 {[%clk 0:00:04]}  fxe6 {[%clk 0:00:42]} 34. Rxd4 {[%clk 0:00:05]}  hxg5 {[%clk 0:00:40]} 35. hxg5 {[%clk 0:00:04]}  Rc7 {[%clk 0:00:39]} 36. Rd8 {[%clk 0:00:05]}  Kf7 {[%clk 0:00:40]} 37. b4 {[%clk 0:00:05]}  a5 {[%clk 0:00:29]} 38. bxa5 {[%clk 0:00:03]}  Rc5 {[%clk 0:00:20]} 39. Rd7+ {[%clk 0:00:02]}  Ke8 {[%clk 0:00:21]} 40. Rxb7 {[%clk 0:00:02]}  Rxg5+ {[%clk 0:00:21]} 41. Kf3 {[%clk 0:00:02]}  Rxa5 {[%clk 0:00:22]} 42. b4 {[%clk 0:00:02]}  Rf5+ {[%clk 0:00:21]} 43. Ke4 {[%clk 0:00:03]}  g5 {[%clk 0:00:18]} 44. c4 {[%clk 0:00:03]}  g4 {[%clk 0:00:17]} 45. c5 {[%clk 0:00:02]}  g3 {[%clk 0:00:16]} 46. Ra7 {[%clk 0:00:03]}  g2 {[%clk 0:00:15]} 0-1


[Site "https://www.chess.com"]